Body Name,Body,Service Level,Expense Type,Expense Code,Narrative,Date,Transaction Number,Amount,Capital and Revenue,Supplier Name,Supplier ID
South Ribble Council,http://statistics.data.gov.uk/doc/local-authority/30UN,Homelessness,Contractors Charges 5,5313,Void loss for temporary accommodation at Dunkirk Lane 2017/18,13/06/2018,0000440259,"3,822.63",Revenue,ACCENT FOUNDATION,00015820
South Ribble Council,http://statistics.data.gov.uk/doc/local-authority/30UN,HR & Communications,Training Expense-Course Fees,1402,Course: GDPR Practitioner Certificate Date: 13/08/2018 Delegate: NAME REDACTED,13/06/2018,0000440332,"1,995.00",Revenue,Act Now Training,132585
South Ribble Council,http://statistics.data.gov.uk/doc/local-authority/30UN,Property Services,Rep & Maint Fixed Plant,2035,"2018 / 2019 annual contract for CCTV maintenance at Leyland Market, Northcote Street, PR25 2AA",13/06/2018,0000440273,830.00,Revenue,ADT FIRE & SECURITY PLC,131052
South Ribble Council,http://statistics.data.gov.uk/doc/local-authority/30UN,Property Services,Rep & Maint Fixed Plant,2035,"2017 / 2018 annual contract for CCTV maintenance at Leyland Market, Northcote Street, PR25 2AA",22/06/2018,0000440484,"1,074.00",Revenue,ADT FIRE & SECURITY PLC,131052
South Ribble Council,http://statistics.data.gov.uk/doc/local-authority/30UN,Regeneration,Other Misc,4861,"artwork and proofs, 2,500 single sided A5 flyers, and the artwork and proofs and 4 date banners for Longton Live 2018",15/06/2018,0000440223,500.00,Revenue,AINSWORTH & PARKINSON,130107
South Ribble Council,http://statistics.data.gov.uk/doc/local-authority/30UN,Legal,Financial,4811,post office,13/06/2018,0000440137,"1,115.91",Revenue,ALLPAY LTD,00122276
South Ribble Council,http://statistics.data.gov.uk/doc/local-authority/30UN,Legal,Financial,4811,paypoint,13/06/2018,0000440137,181.08,Revenue,ALLPAY LTD,00122276
South Ribble Council,http://statistics.data.gov.uk/doc/local-authority/30UN,Legal,Financial,4811,web,13/06/2018,0000440137,47.72,Revenue,ALLPAY LTD,00122276
South Ribble Council,http://statistics.data.gov.uk/doc/local-authority/30UN,Regeneration,Advertising,4842,250 x My Neighbourhood annual report printing,13/06/2018,0000440255,320.00,Revenue,AMJ LTD (THE STATIONERY STORE),00096946
South Ribble Council,http://statistics.data.gov.uk/doc/local-authority/30UN,Regeneration,Other Misc,4861,Support and design of the next Heritage Trail leaflet for Howick,27/06/2018,0000440415,300.00,Revenue,Andrew Allen,131969
South Ribble Council,http://statistics.data.gov.uk/doc/local-authority/30UN,Property Services,Rep & Maint Premises,2020,call out to the Civic Centre at West Paddock - there are some windows that cannot be opened on the first floor DWP wing,20/06/2018,0000440391,528.00,Revenue,ARchitectural Glazing & Facades Ltd (AG&F Ltd),131248
South Ribble Council,http://statistics.data.gov.uk/doc/local-authority/30UN,HR & Communications,Recruitment Expenses,1500,Advert for Governance & Member Services Officer June 2018,20/06/2018,0000440371,350.00,Revenue,ASSOCIATION OF DEMOCRATIC SERVICE OFFICE,00122250
South Ribble Council,http://statistics.data.gov.uk/doc/local-authority/30UN,HR & Communications,Training Expense-Course Fees,1402,PRINCE2 FOUNDATION AND PRACTITIONER COURSE - NAME REDACTED,08/06/2018,0000440186,540.00,Revenue,BABINGTON,132577
South Ribble Council,http://statistics.data.gov.uk/doc/local-authority/30UN,HR & Communications,Training Expense-Course Fees,1402,non vat,08/06/2018,0000440186,562.80,Revenue,BABINGTON,132577
South Ribble Council,http://statistics.data.gov.uk/doc/local-authority/30UN,Information Services,Stationery,4136,AA81756  Labels 38.1 x 21.2,13/06/2018,0000440307,3.68,Revenue,BANNER GROUP LTD,00081485
South Ribble Council,http://statistics.data.gov.uk/doc/local-authority/30UN,Information Services,Stationery,4136,0230408  Popper Wallets pk 5,13/06/2018,0000440307,2.56,Revenue,BANNER GROUP LTD,00081485
South Ribble Council,http://statistics.data.gov.uk/doc/local-authority/30UN,Information Services,Stationery,4136,3049384 Shorthand Notebooks pk 20,13/06/2018,0000440307,21.42,Revenue,BANNER GROUP LTD,00081485
South Ribble Council,http://statistics.data.gov.uk/doc/local-authority/30UN,Information Services,Stationery,4136,9290051 Stapler,13/06/2018,0000440307,3.00,Revenue,BANNER GROUP LTD,00081485
South Ribble Council,http://statistics.data.gov.uk/doc/local-authority/30UN,Information Services,Stationery,4136,9330007 2 Hole punch,13/06/2018,0000440307,1.08,Revenue,BANNER GROUP LTD,00081485
South Ribble Council,http://statistics.data.gov.uk/doc/local-authority/30UN,Information Services,Stationery,4136,9450023 Footrest,13/06/2018,0000440307,2.48,Revenue,BANNER GROUP LTD,00081485
South Ribble Council,http://statistics.data.gov.uk/doc/local-authority/30UN,Information Services,Stationery,413A,1019125 GP 935 Cartridge Cyan,13/06/2018,0000440307,29.22,Revenue,BANNER GROUP LTD,00081485
South Ribble Council,http://statistics.data.gov.uk/doc/local-authority/30UN,Information Services,Stationery,413A,1019126 HP 935 Magenta Cartridge,13/06/2018,0000440307,29.22,Revenue,BANNER GROUP LTD,00081485
South Ribble Council,http://statistics.data.gov.uk/doc/local-authority/30UN,Information Services,Stationery,413A,1019127  HP 935 Yellow Cartridge,13/06/2018,0000440307,29.22,Revenue,BANNER GROUP LTD,00081485
South Ribble Council,http://statistics.data.gov.uk/doc/local-authority/30UN,Information Services,Stationery,4136,1396116  Nyrex Twin Wallets pk 25,13/06/2018,0000440307,108.20,Revenue,BANNER GROUP LTD,00081485
South Ribble Council,http://statistics.data.gov.uk/doc/local-authority/30UN,Information Services,Stationery,4136,0601014 Stick on hook coins,13/06/2018,0000440307,5.95,Revenue,BANNER GROUP LTD,00081485
South Ribble Council,http://statistics.data.gov.uk/doc/local-authority/30UN,Information Services,Stationery,4136,6483177  Post it notes pk 12,13/06/2018,0000440307,8.00,Revenue,BANNER GROUP LTD,00081485
South Ribble Council,http://statistics.data.gov.uk/doc/local-authority/30UN,Information Services,Stationery,4136,6469418  Cash Tin,13/06/2018,0000440307,2.21,Revenue,BANNER GROUP LTD,00081485
South Ribble Council,http://statistics.data.gov.uk/doc/local-authority/30UN,Information Services,Stationery,4136,9855601 Retractable Blue Pens pk 10,13/06/2018,0000440307,8.65,Revenue,BANNER GROUP LTD,00081485
South Ribble Council,http://statistics.data.gov.uk/doc/local-authority/30UN,Information Services,Stationery,4136,4048472  Retractable Black Pens pk 10,13/06/2018,0000440307,8.65,Revenue,BANNER GROUP LTD,00081485
South Ribble Council,http://statistics.data.gov.uk/doc/local-authority/30UN,Information Services,Stationery,4136,3077217 add on item 2 xpen/pencil holders blue as per pam,13/06/2018,0000440307,3.16,Revenue,BANNER GROUP LTD,00081485
South Ribble Council,http://statistics.data.gov.uk/doc/local-authority/30UN,Information Services,Stationery,4136,RexelA4 Clear Twin wallet pk 25,13/06/2018,0000440328,108.20,Revenue,BANNER GROUP LTD,00081485
South Ribble Council,http://statistics.data.gov.uk/doc/local-authority/30UN,Information Services,Stationery,4136,7901026  Photo A4 Glass Frame A4,13/06/2018,0000440328,159.20,Revenue,BANNER GROUP LTD,00081485
South Ribble Council,http://statistics.data.gov.uk/doc/local-authority/30UN,Information Services,Stationery,4136,3440816  Gussett A4 Envelope,13/06/2018,0000440328,8.32,Revenue,BANNER GROUP LTD,00081485
South Ribble Council,http://statistics.data.gov.uk/doc/local-authority/30UN,Information Services,Stationery,4136,9670020  Labels 24 per sheet,13/06/2018,0000440328,3.69,Revenue,BANNER GROUP LTD,00081485
South Ribble Council,http://statistics.data.gov.uk/doc/local-authority/30UN,Information Services,Stationery,4136,9984167  Black pens pk 20,13/06/2018,0000440328,4.45,Revenue,BANNER GROUP LTD,00081485
South Ribble Council,http://statistics.data.gov.uk/doc/local-authority/30UN,Information Services,Stationery,4136,8225465 Blue pens pk 20,13/06/2018,0000440328,4.45,Revenue,BANNER GROUP LTD,00081485
South Ribble Council,http://statistics.data.gov.uk/doc/local-authority/30UN,Information Services,Stationery,4136,9290051  Stapler,13/06/2018,0000440328,3.00,Revenue,BANNER GROUP LTD,00081485
South Ribble Council,http://statistics.data.gov.uk/doc/local-authority/30UN,Information Services,Stationery,4136,0501552  Correction roller pk 10,13/06/2018,0000440328,1.72,Revenue,BANNER GROUP LTD,00081485
South Ribble Council,http://statistics.data.gov.uk/doc/local-authority/30UN,Information Services,Stationery,4136,9330007   Two Hole Punch,13/06/2018,0000440328,1.08,Revenue,BANNER GROUP LTD,00081485
South Ribble Council,http://statistics.data.gov.uk/doc/local-authority/30UN,Information Services,Stationery,4136,1342233  Orange highlighter pk 10,13/06/2018,0000440328,1.50,Revenue,BANNER GROUP LTD,00081485
South Ribble Council,http://statistics.data.gov.uk/doc/local-authority/30UN,Information Services,Stationery,4136,5454466  Blue highlighter pk 10,13/06/2018,0000440328,1.50,Revenue,BANNER GROUP LTD,00081485
South Ribble Council,http://statistics.data.gov.uk/doc/local-authority/30UN,Information Services,Stationery,4137,9000020  C5 White window envelopes,13/06/2018,0000440328,11.25,Revenue,BANNER GROUP LTD,00081485
South Ribble Council,http://statistics.data.gov.uk/doc/local-authority/30UN,Information Services,Stationery,4136,6449758  Desk fan  12 inch,13/06/2018,0000440328,48.00,Revenue,BANNER GROUP LTD,00081485
South Ribble Council,http://statistics.data.gov.uk/doc/local-authority/30UN,Area 2 - Waste Transport/Eastern & Central Teams,Materials General,4040,Brake parts JFC 10632 TRA09A3,13/06/2018,0000440224,351.50,Revenue,BARLOW TRAILERS LTD,00016120
South Ribble Council,http://statistics.data.gov.uk/doc/local-authority/30UN,Development Enterprise & Comm Mgnt,Advertising,4842,Various Sports Equipment,20/06/2018,0000439850,640.00,Revenue,Bishop Sports & Leisure Ltd,131843
South Ribble Council,http://statistics.data.gov.uk/doc/local-authority/30UN,Property Services,Clothing- Uniforms & Laundry,4410,Various uniform/clothing items for Caretaking/cleaning staff,20/06/2018,0000440387,378.75,Revenue,BURLINGTON UNIFORMS LTD,130320
South Ribble Council,http://statistics.data.gov.uk/doc/local-authority/30UN,Neighbourhood Admin & Support,External Contractors Charges,4570,"EMPTY OF CATCH PIT AND GULLY, JETTING OF PIPE AND CCTV SURVEY TO FIND BURRIED CHAMBER",20/06/2018,0000439772,350.00,Revenue,C J LYON,130254
South Ribble Council,http://statistics.data.gov.uk/doc/local-authority/30UN,Environmental Health,Other Misc,4851,Safeguarding Training held on 30th April.,06/06/2018,0000439993,"1,500.00",Revenue,Calico Enterprise,132188
South Ribble Council,http://statistics.data.gov.uk/doc/local-authority/30UN,HR & Communications,Recruitment Expenses,1500,credit 8013016263 cancels out invoice,20/06/2018,0000439513,"5,000.00",Revenue,CAPITA RESOURCING LTD,132257
South Ribble Council,http://statistics.data.gov.uk/doc/local-authority/30UN,HR & Communications,Recruitment Expenses,1500,Recruitment and assessment for the Deputy CEO  position 2018 Final Stage,20/06/2018,0000440477,"4,685.00",Revenue,CAPITA RESOURCING LTD,132257
South Ribble Council,http://statistics.data.gov.uk/doc/local-authority/30UN,Environmental Health,Training Expense-Course Fees,1400,3 Day Course 21/22/23 May 0900-1700 NAME REDACTED - sent to Centaur NAME REDACTED sent to Centaur  2 Day Course,15/06/2018,0000440283,300.00,Revenue,Centaur Training Services (North West) Ltd,132060
South Ribble Council,http://statistics.data.gov.uk/doc/local-authority/30UN,Area 2 - Waste Transport/Eastern & Central Teams,Cap Vehicles,C440,1 X TRAILED CYLINDER MOWER (TORO TM5490 - spec as quoted in Tender/Grounds Maintenance Machines Lot 3),20/06/2018,0000440212,"19,417.94",Revenue,CHESHIRE TURF MACHINERY,130975
South Ribble Council,http://statistics.data.gov.uk/doc/local-authority/30UN,Democratic Services,Other Expenses,463A,"hot and cold buffet with cake for 100 on Tuesday, 15 May 2018 ready for service at 7pm at the Civic Centre  NAME REDACTED",27/06/2018,0000440355,700.00,Revenue,Chicken BBQ,132568
South Ribble Council,http://statistics.data.gov.uk/doc/local-authority/30UN,Homelessness,Contributions,4730,Cotswold Supported Housing 31 days booking room 20 @35.28 = 1093.68 +vat,13/06/2018,0000440351,"1,093.68",Revenue,CHORLEY BOROUGH COUNCIL,00017352
South Ribble Council,http://statistics.data.gov.uk/doc/local-authority/30UN,Homelessness,Contributions,4730,Cotswold Supported Housing PERSONAL CHARGES JH 47.51,13/06/2018,0000440351,47.51,Revenue,CHORLEY BOROUGH COUNCIL,00017352
South Ribble Council,http://statistics.data.gov.uk/doc/local-authority/30UN,Homelessness,Contributions,4730,Cotswold Supported Housing Personal Charges CR 1.93,13/06/2018,0000440351,1.93,Revenue,CHORLEY BOROUGH COUNCIL,00017352
South Ribble Council,http://statistics.data.gov.uk/doc/local-authority/30UN,Revenues Plus,Agency Fees,1121,Recharge for NAME REDACTED in Benefits 2017-18,22/06/2018,0000440541,"20,265.11",Revenue,CHORLEY BOROUGH COUNCIL,00017352
South Ribble Council,http://statistics.data.gov.uk/doc/local-authority/30UN,Property Services,Rep & Maint Premises,2024,Attend Herne Avenue Pavilion in Lostock Hall - and supply 3 x Heavy duty padlocks with keys suitable for container type building,06/06/2018,0000440118,146.00,Revenue,COOPER BESPOKE JOINERY LTD,00104456
South Ribble Council,http://statistics.data.gov.uk/doc/local-authority/30UN,Property Services,Rep & Maint Premises,2024,materials,06/06/2018,0000440118,207.36,Revenue,COOPER BESPOKE JOINERY LTD,00104456
South Ribble Council,http://statistics.data.gov.uk/doc/local-authority/30UN,Property Services,Rep & Maint Premises,2020,"Supply & fit 1 hardwood T & G door to the rear of Red Frog, Worden Park. Paint colour as existing door. Also including extra work",15/06/2018,0000440119,699.84,Revenue,COOPER BESPOKE JOINERY LTD,00104456
South Ribble Council,http://statistics.data.gov.uk/doc/local-authority/30UN,Property Services,Rep & Maint Premises,2020,materials,15/06/2018,0000440119,772.91,Revenue,COOPER BESPOKE JOINERY LTD,00104456
South Ribble Council,http://statistics.data.gov.uk/doc/local-authority/30UN,Revenues Plus,Postage,4291,Postage for April - June 2018,15/06/2018,0000440298,369.65,Revenue,CRITIQOM,131053
South Ribble Council,http://statistics.data.gov.uk/doc/local-authority/30UN,Revenues Plus,Postage,4291,Postage for April - June 2018,15/06/2018,0000440308,776.97,Revenue,CRITIQOM,131053
South Ribble Council,http://statistics.data.gov.uk/doc/local-authority/30UN,Revenues Plus,Postage,4291,Postage for April - June 2018,15/06/2018,0000440365,912.22,Revenue,CRITIQOM,131053
South Ribble Council,http://statistics.data.gov.uk/doc/local-authority/30UN,Revenues Plus,Postage,4291,Postage for April - June 2018,27/06/2018,0000440548,449.79,Revenue,CRITIQOM,131053
South Ribble Council,http://statistics.data.gov.uk/doc/local-authority/30UN,Area 2 - Waste Transport/Eastern & Central Teams,Materials General,4040,1 SENSOR - VK09AHJ - JFC10678 - AW,06/06/2018,0000440037,438.52,Revenue,DENNIS EAGLE LTD,00019774
South Ribble Council,http://statistics.data.gov.uk/doc/local-authority/30UN,Area 2 - Waste Transport/Eastern & Central Teams,Cap Vehicles,C440,26 Tonne REFUSE VEHICLE,22/06/2018,0000440417,705.00,Revenue,DENNIS EAGLE LTD,00019774
South Ribble Council,http://statistics.data.gov.uk/doc/local-authority/30UN,Neighbourhood Admin & Support,Operational Furniture & Equip,4010,5m Grillon adj Lanyard c/w hook - LYL52H005,06/06/2018,0000439855,117.00,Revenue,DICK LEIGH,00026534
South Ribble Council,http://statistics.data.gov.uk/doc/local-authority/30UN,Neighbourhood Admin & Support,Operational Furniture & Equip,4010,New England wire corded Flip line 5mtr - TSNEW2025,06/06/2018,0000439855,89.90,Revenue,DICK LEIGH,00026534
South Ribble Council,http://statistics.data.gov.uk/doc/local-authority/30UN,Neighbourhood Admin & Support,Operational Furniture & Equip,4010,13.5mm Baobab split tail 120cm - LYBCST135.0120,06/06/2018,0000439855,16.93,Revenue,DICK LEIGH,00026534
South Ribble Council,http://statistics.data.gov.uk/doc/local-authority/30UN,Neighbourhood Admin & Support,Operational Furniture & Equip,4010,Marlow Boa loop 60cm ind. serial no - TSWKE014,06/06/2018,0000439855,12.34,Revenue,DICK LEIGH,00026534
South Ribble Council,http://statistics.data.gov.uk/doc/local-authority/30UN,Neighbourhood Admin & Support,Operational Furniture & Equip,4010,Marlow Boa loop 70cm ind. serial no - TSWLE015,06/06/2018,0000439855,12.72,Revenue,DICK LEIGH,00026534
South Ribble Council,http://statistics.data.gov.uk/doc/local-authority/30UN,Neighbourhood Admin & Support,Operational Furniture & Equip,4010,Black Spatha Rescue Knife Petzl - LYS92AN,06/06/2018,0000439855,17.50,Revenue,DICK LEIGH,00026534
South Ribble Council,http://statistics.data.gov.uk/doc/local-authority/30UN,Neighbourhood Admin & Support,Operational Furniture & Equip,4010,Ocean polyester eye to eye 10mm dia 90cm long - TSTEU030/10,06/06/2018,0000439855,16.25,Revenue,DICK LEIGH,00026534
South Ribble Council,http://statistics.data.gov.uk/doc/local-authority/30UN,Neighbourhood Admin & Support,Operational Furniture & Equip,4010,Repair Kit Mini Rope Grab - TSISC301,06/06/2018,0000439855,19.00,Revenue,DICK LEIGH,00026534
South Ribble Council,http://statistics.data.gov.uk/doc/local-authority/30UN,Neighbourhood Admin & Support,Operational Furniture & Equip,4010,M/Low 16mm Raptor Rigging Min Strength 6652kg - TS16RAPTOR,06/06/2018,0000439855,106.75,Revenue,DICK LEIGH,00026534
South Ribble Council,http://statistics.data.gov.uk/doc/local-authority/30UN,Neighbourhood Admin & Support,Operational Furniture & Equip,4010,Clear Heat Shrink 16 - 24mm per meter - TSGBG083,06/06/2018,0000439855,10.50,Revenue,DICK LEIGH,00026534
South Ribble Council,http://statistics.data.gov.uk/doc/local-authority/30UN,Neighbourhood Admin & Support,Operational Furniture & Equip,4010,Long Wrench 13 - 19mm - ST11298903401,06/06/2018,0000439855,7.08,Revenue,DICK LEIGH,00026534
South Ribble Council,http://statistics.data.gov.uk/doc/local-authority/30UN,Neighbourhood Admin & Support,Operational Furniture & Equip,4010,COMB. WRENCH 16 - 19mm MS181/211 - ST00008903400,06/06/2018,0000439855,7.08,Revenue,DICK LEIGH,00026534
South Ribble Council,http://statistics.data.gov.uk/doc/local-authority/30UN,Neighbourhood Admin & Support,Operational Furniture & Equip,4010,delivery charge,06/06/2018,0000439855,3.00,Revenue,DICK LEIGH,00026534
South Ribble Council,http://statistics.data.gov.uk/doc/local-authority/30UN,Area 3 - Parks/Leyland East West,Operational Furniture & Equip,4010,TreeHog 5mtr wire cored Flipline c/w/ swivel 3 way (TSTH1171-500),06/06/2018,0000440000,160.00,Revenue,DICK LEIGH,00026534
South Ribble Council,http://statistics.data.gov.uk/doc/local-authority/30UN,Area 3 - Parks/Leyland East West,Clothing- Uniforms & Laundry,4410,ADVANCE X-FLEX `C` TROUSERS - Large (ST00883420056),06/06/2018,0000440000,170.00,Revenue,DICK LEIGH,00026534
South Ribble Council,http://statistics.data.gov.uk/doc/local-authority/30UN,Information Services,Peripherals,4260,,08/06/2018,0000440250,"2,468.78",Revenue,EE Ltd,131653
South Ribble Council,http://statistics.data.gov.uk/doc/local-authority/30UN,Information Services,Peripherals,4260,non vat,08/06/2018,0000440250,623.20,Revenue,EE Ltd,131653
South Ribble Council,http://statistics.data.gov.uk/doc/local-authority/30UN,Area 2 - Waste Transport/Eastern & Central Teams,Printing,4127,Green Waste Permit Printing and Distribution 2018 - 19,20/06/2018,0000440253,"2,419.86",Revenue,Euro Print Labels,132447
South Ribble Council,http://statistics.data.gov.uk/doc/local-authority/30UN,Area 2 - Waste Transport/Eastern & Central Teams,External Contractors Charges,4570,ADDITIONAL CLINICAL WASTE COLLECTIONS MAY 2018,20/06/2018,0000440447,264.11,Revenue,FCC Environment Services (UK) Ltd,131612
South Ribble Council,http://statistics.data.gov.uk/doc/local-authority/30UN,Area 2 - Waste Transport/Eastern & Central Teams,External Contractors Charges,4570,ADDITIONAL BULKY WASTE COLLECTIONS - MAY 2018,20/06/2018,0000440448,795.24,Revenue,FCC Environment Services (UK) Ltd,131612
South Ribble Council,http://statistics.data.gov.uk/doc/local-authority/30UN,Area 2 - Waste Transport/Eastern & Central Teams,External Contractors Charges,4570,ADDITIONAL WEEE COLLECTIONS MAY 2018,20/06/2018,0000440448,276.85,Revenue,FCC Environment Services (UK) Ltd,131612
South Ribble Council,http://statistics.data.gov.uk/doc/local-authority/30UN,Area 2 - Waste Transport/Eastern & Central Teams,External Contractors Charges,4570,RESIDUAL WASTE COLLECTIONS MAY 2018,20/06/2018,0000440449,"42,482.57",Revenue,FCC Environment Services (UK) Ltd,131612
South Ribble Council,http://statistics.data.gov.uk/doc/local-authority/30UN,Area 2 - Waste Transport/Eastern & Central Teams,External Contractors Charges,4570,DRY RECYCLABLE NON-TERRACED MAY 2018,20/06/2018,0000440449,"43,506.64",Revenue,FCC Environment Services (UK) Ltd,131612
South Ribble Council,http://statistics.data.gov.uk/doc/local-authority/30UN,Area 2 - Waste Transport/Eastern & Central Teams,External Contractors Charges,4570,DRY RECYCLABLE TERRACED COLLECTIONS MAY 2018,20/06/2018,0000440449,"2,066.66",Revenue,FCC Environment Services (UK) Ltd,131612
South Ribble Council,http://statistics.data.gov.uk/doc/local-authority/30UN,Area 2 - Waste Transport/Eastern & Central Teams,External Contractors Charges,4570,ORGANIC WASTE COLLECTIONS NON TERRACED MAY 2018,20/06/2018,0000440449,"30,151.91",Revenue,FCC Environment Services (UK) Ltd,131612
South Ribble Council,http://statistics.data.gov.uk/doc/local-authority/30UN,Area 2 - Waste Transport/Eastern & Central Teams,External Contractors Charges,4570,SCHEDULE 2 COLLECTIONS  MAY 2018,20/06/2018,0000440449,"1,725.43",Revenue,FCC Environment Services (UK) Ltd,131612
South Ribble Council,http://statistics.data.gov.uk/doc/local-authority/30UN,Area 2 - Waste Transport/Eastern & Central Teams,External Contractors Charges,4570,COMMERCIAL WASTE COLLECTIONS MAY 2018,20/06/2018,0000440449,"6,761.80",Revenue,FCC Environment Services (UK) Ltd,131612
South Ribble Council,http://statistics.data.gov.uk/doc/local-authority/30UN,Area 2 - Waste Transport/Eastern & Central Teams,External Contractors Charges,4570,BULKY WASTE COLLECTIONS MAY 2018,20/06/2018,0000440449,934.56,Revenue,FCC Environment Services (UK) Ltd,131612
South Ribble Council,http://statistics.data.gov.uk/doc/local-authority/30UN,Area 2 - Waste Transport/Eastern & Central Teams,External Contractors Charges,4570,WEEE COLLECTIONS MAY 2018,20/06/2018,0000440449,349.34,Revenue,FCC Environment Services (UK) Ltd,131612
South Ribble Council,http://statistics.data.gov.uk/doc/local-authority/30UN,Area 2 - Waste Transport/Eastern & Central Teams,External Contractors Charges,4570,CLINICAL WASTE COLLECTIONS MAY 2018,20/06/2018,0000440449,594.92,Revenue,FCC Environment Services (UK) Ltd,131612
South Ribble Council,http://statistics.data.gov.uk/doc/local-authority/30UN,Area 2 - Waste Transport/Eastern & Central Teams,External Contractors Charges,4570,REPLACEMENT BINS MAY 2018,20/06/2018,0000440449,"5,000.00",Revenue,FCC Environment Services (UK) Ltd,131612
South Ribble Council,http://statistics.data.gov.uk/doc/local-authority/30UN,Area 2 - Waste Transport/Eastern & Central Teams,External Contractors Charges,4570,ADDITIONAL PROPERTIES MAY 2018,20/06/2018,0000440449,"4,763.77",Revenue,FCC Environment Services (UK) Ltd,131612
South Ribble Council,http://statistics.data.gov.uk/doc/local-authority/30UN,Area 2 - Waste Transport/Eastern & Central Teams,External Contractors Charges,4570,ANNUAL LICENCE FEE AND MAINTENANCE OF FLEETCHECK SYSTEM,29/06/2018,0000440624,"2,400.00",Revenue,FLEETCHECK LTD,130457
South Ribble Council,http://statistics.data.gov.uk/doc/local-authority/30UN,Regeneration,Other Misc,4861,"Work at Leyland Railway Station for Love Leyland campaign - materials, plants and planter",27/06/2018,0000440481,748.00,Revenue,Friends of Leyland Station,132233
South Ribble Council,http://statistics.data.gov.uk/doc/local-authority/30UN,Regeneration,Other Misc,4851,2 Gator Hire for Leyland Festival,20/06/2018,0000440438,600.00,Revenue,GATOR HIRE UK LTD,131217
South Ribble Council,http://statistics.data.gov.uk/doc/local-authority/30UN,Shared Financial Services,Professional Fees,4512,Main Audit Fee for 2017/18,20/06/2018,0000440407,"10,981.00",Revenue,Grant Thornton UK LLP,130718
South Ribble Council,http://statistics.data.gov.uk/doc/local-authority/30UN,Shared Financial Services,Pensions Increase Act Payments,1701,Rechargeable Pension Costs 2018-19,27/06/2018,0000440610,"6,540.50",Revenue,GREATER MANCHESTER PENSION FUND,00022538
South Ribble Council,http://statistics.data.gov.uk/doc/local-authority/30UN,Neighbourhood Admin & Support,Vehicle Running Costs,3134,2500 LITRES GAS OIL (@0.6017 per litre),13/06/2018,0000440264,"1,483.25",Revenue,Hall Fuels trading name of WFL (UK) Ltd,00116758
South Ribble Council,http://statistics.data.gov.uk/doc/local-authority/30UN,Neighbourhood Admin & Support,Vehicle Running Costs,3132,"12,000 LITRES DIESEL (@1.0608 per litre)",13/06/2018,0000440271,"12,617.22",Revenue,Hall Fuels trading name of WFL (UK) Ltd,00116758
South Ribble Council,http://statistics.data.gov.uk/doc/local-authority/30UN,Chief Executive`s Management,Rents,2402,HIRE OF ROOMS FOR ASSESSMENT CENTRE FOR THE INTENAL RECRUITMENT ON 22 & 23 MARCH 2018,06/06/2018,0000440025,"1,485.00",Revenue,Hallmark Hotel Preston Leyland,00090117
South Ribble Council,http://statistics.data.gov.uk/doc/local-authority/30UN,HR & Communications,Training Expense-Course Fees,1402,PA Conference 11th October 2018 NAMES REDACTED,13/06/2018,0000440334,660.00,Revenue,HEMSLEY FRASER GROUP LTD,132113
South Ribble Council,http://statistics.data.gov.uk/doc/local-authority/30UN,Property Services,Rep & Maint Premises,2020,"ACCESS CONTROL ADDITIONS - PRIORITY DOORS. (AS PER YOUR QUOTE FEBRUARY 2018) PHASE 2 (A36, A37, A38)",15/06/2018,0000440147,"6,131.60",Revenue,HFX LTD,00023728
South Ribble Council,http://statistics.data.gov.uk/doc/local-authority/30UN,Property Services,Rep & Maint Premises,2020,"ACCESS CONTROL ADDITIONS - PRIORITY DOORS (AS PER YOUR QUOTE FEBRUARY 2018) A39, A42, A43 HARDWARE",15/06/2018,0000440149,"6,107.99",Revenue,HFX LTD,00023728
South Ribble Council,http://statistics.data.gov.uk/doc/local-authority/30UN,Shared Financial Services,Balance Sheet,0140,,15/06/2018,0000439828,450.00,Revenue,HM REVENUE & CUSTOMS,00024837
South Ribble Council,http://statistics.data.gov.uk/doc/local-authority/30UN,HR & Communications,Advertising,4848,Leyland Festival Pictures  Saturday 16th June 2018,20/06/2018,0000440422,250.00,Revenue,IAN ROBINSON,132041
South Ribble Council,http://statistics.data.gov.uk/doc/local-authority/30UN,Information Services,Peripherals,4248,Building Inspections Apps Maintenance for period 14/07/18 - 13/07/19,13/06/2018,0000440303,623.40,Revenue,IDOX PLC,00104485
South Ribble Council,http://statistics.data.gov.uk/doc/local-authority/30UN,Information Services,Financial,4813,Data Protection fee renewals for 50 Councillors @ 40 each,06/06/2018,0000440172,"2,000.00",Revenue,INFORMATION COMMISSIONER,00053293
South Ribble Council,http://statistics.data.gov.uk/doc/local-authority/30UN,Neighbourhood Admin & Support,Materials General,4040,QC10 - QUICK SET CONCRETE,15/06/2018,0000440380,"1,228.64",Revenue,INSTARMAC GROUP PLC,00024905
South Ribble Council,http://statistics.data.gov.uk/doc/local-authority/30UN,Neighbourhood Admin & Support,Materials General,4040,PERMANENT POTHOLE REPAIR - TUB - Special,15/06/2018,0000440380,117.84,Revenue,INSTARMAC GROUP PLC,00024905
South Ribble Council,http://statistics.data.gov.uk/doc/local-authority/30UN,Property Services,Rep & Maint Premises,2020,"Annual Contract for 2018 - 2019 for the maintenance of the Trend BMS HVAC 4 x day visits (TBA)  June, Sept, Dec, March ",22/06/2018,0000440421,390.00,Revenue,JBC CONTROL SYSTEM,130816
South Ribble Council,http://statistics.data.gov.uk/doc/local-authority/30UN,Neighbourhood Admin & Support,Materials General,4040,BLUE CIRCLE POSTCRETE 20K - CEMBCPMX,13/06/2018,0000440157,239.40,Revenue,JEWSON LTD,130263
South Ribble Council,http://statistics.data.gov.uk/doc/local-authority/30UN,Neighbourhood Admin & Support,Materials General,4040,Hammerite Spray - Smooth Black - 400ml can - LDFSBL04,13/06/2018,0000440157,25.25,Revenue,JEWSON LTD,130263
South Ribble Council,http://statistics.data.gov.uk/doc/local-authority/30UN,Environmental Health,Other Misc,4851,White spoke reflectors pack of six 1200 x 0.79p  Digital Door Viewer 10 x 82.95  Shed Security Pack 20 x 10.95,06/06/2018,0000439936,"1,996.50",Revenue,JNE MARKETING LTD,130273
South Ribble Council,http://statistics.data.gov.uk/doc/local-authority/30UN,HR & Communications,Agency Fees,1121,Consultancy Fee`s  30th April - 1st June 2018,13/06/2018,0000440333,"9,485.85",Revenue,Joanne Platt Associates Ltd,132222
South Ribble Council,http://statistics.data.gov.uk/doc/local-authority/30UN,Area 3 - Parks/Leyland East West,Grounds Maint Cntrctrs Chgs,4657,14no 3.6 x 0.075 x 0.075m SOFTWOOD RAILS - BROWN,13/06/2018,0000440217,73.78,Revenue,JOHN HY MAYOR & SONS LTD,00028176
South Ribble Council,http://statistics.data.gov.uk/doc/local-authority/30UN,Area 3 - Parks/Leyland East West,Grounds Maint Cntrctrs Chgs,4657,42no 0.9 X 0.1 X 0.1m BIRD`S MOUTH POST,13/06/2018,0000440217,147.00,Revenue,JOHN HY MAYOR & SONS LTD,00028176
South Ribble Council,http://statistics.data.gov.uk/doc/local-authority/30UN,Area 3 - Parks/Leyland East West,Grounds Maint Cntrctrs Chgs,4657,70 x METAL STRAPS  DELIVERY TO WORDEN PARK. PLEASE CALL 01772 625561 1HR PRIOR FOR DEPOT ACCESS.,13/06/2018,0000440217,59.50,Revenue,JOHN HY MAYOR & SONS LTD,00028176
South Ribble Council,http://statistics.data.gov.uk/doc/local-authority/30UN,Regeneration,Capital Expenditure,C230,Walton Le dale community centre car park improvements additional stone,20/06/2018,0000439147,964.80,Revenue,John Wade Groundworks Ltd t/a Wade Group,131568
South Ribble Council,http://statistics.data.gov.uk/doc/local-authority/30UN,Planning,Advertising,4841,Press notices for planning applications 2018/19,08/06/2018,0000439913,513.00,Revenue,JOHNSTON PUBLISHING (NORTH WEST),00011345
South Ribble Council,http://statistics.data.gov.uk/doc/local-authority/30UN,Planning,Advertising,4841,Press notices for planning applications 2018/19,08/06/2018,0000439940,540.00,Revenue,JOHNSTON PUBLISHING (NORTH WEST),00011345
South Ribble Council,http://statistics.data.gov.uk/doc/local-authority/30UN,Planning,Advertising,4841,Press notices for planning applications 2018/19,15/06/2018,0000440096,567.00,Revenue,JOHNSTON PUBLISHING (NORTH WEST),00011345
South Ribble Council,http://statistics.data.gov.uk/doc/local-authority/30UN,Planning,Advertising,4841,Press notices for planning applications 2018/19,15/06/2018,0000440097,567.00,Revenue,JOHNSTON PUBLISHING (NORTH WEST),00011345
South Ribble Council,http://statistics.data.gov.uk/doc/local-authority/30UN,Planning,Advertising,4841,Press notices for planning applications 2018/19,15/06/2018,0000440116,513.00,Revenue,JOHNSTON PUBLISHING (NORTH WEST),00011345
South Ribble Council,http://statistics.data.gov.uk/doc/local-authority/30UN,Planning,Advertising,4841,Press notices for planning applications 2018/19,15/06/2018,0000440206,540.00,Revenue,JOHNSTON PUBLISHING (NORTH WEST),00011345
South Ribble Council,http://statistics.data.gov.uk/doc/local-authority/30UN,Neighbourhood Admin & Support,External Contractors Charges,4570,"Saturday working on Schleswig Way under Stop & Go   475.00 +vat ( 6am Start ) -	Monday  Friday 9.30-15.30 work School Lane ",22/06/2018,0000440482,382.00,Revenue,KAYS TRAFFIC MANAGEMENT LTD,00072342
South Ribble Council,http://statistics.data.gov.uk/doc/local-authority/30UN,Environmental Health,Operational Furniture & Equip,4010,2000 rodent bait bags @ 13.65  per 1000,15/06/2018,0000440222,19.68,Revenue,KILLGERM CHEMICALS LTD,00025894
South Ribble Council,http://statistics.data.gov.uk/doc/local-authority/30UN,Environmental Health,Materials General,4041,PA2 Powder Applicator,15/06/2018,0000440222,397.26,Revenue,KILLGERM CHEMICALS LTD,00025894
South Ribble Council,http://statistics.data.gov.uk/doc/local-authority/30UN,Environmental Health,Operational Furniture & Equip,4010,Aluminium Extension Lances  1.5m (04-615),15/06/2018,0000440222,128.08,Revenue,KILLGERM CHEMICALS LTD,00025894
South Ribble Council,http://statistics.data.gov.uk/doc/local-authority/30UN,Environmental Health,Materials General,4041,Joint Support Bracket PAS019,15/06/2018,0000440222,33.20,Revenue,KILLGERM CHEMICALS LTD,00025894
South Ribble Council,http://statistics.data.gov.uk/doc/local-authority/30UN,Environmental Health,Materials General,4041,Maxforce Ant Bait Stations,15/06/2018,0000440222,2.50,Revenue,KILLGERM CHEMICALS LTD,00025894
South Ribble Council,http://statistics.data.gov.uk/doc/local-authority/30UN,Environmental Health,Materials General,4041,PA2 Replacement Cartridges (PA2 CART 50),15/06/2018,0000440222,75.24,Revenue,KILLGERM CHEMICALS LTD,00025894
South Ribble Council,http://statistics.data.gov.uk/doc/local-authority/30UN,Environmental Health,Materials General,4041,Maxforce Quantum Ant Gel (MAXQUAN 30G),15/06/2018,0000440222,112.75,Revenue,KILLGERM CHEMICALS LTD,00025894
South Ribble Council,http://statistics.data.gov.uk/doc/local-authority/30UN,Environmental Health,Materials General,4041,Vertox WHOLE WHEAT 20kg (VERTWW020K),15/06/2018,0000440222,88.65,Revenue,KILLGERM CHEMICALS LTD,00025894
South Ribble Council,http://statistics.data.gov.uk/doc/local-authority/30UN,Information Services,Peripherals,4241,"4 x Sandisk SSD Plus 480GB 480GB Serial ATA 111 @ 89 each, as per quote",06/06/2018,0000440103,356.00,Revenue,Kuiper Technology Ltd,132547
South Ribble Council,http://statistics.data.gov.uk/doc/local-authority/30UN,Area 2 - Waste Transport/Eastern & Central Teams,Waste Disposal Charges,5112,February 2018 - Incineration of Clinical Waste.,13/06/2018,0000440168,800.47,Revenue,LANCASHIRE TEACHING FT,00120715
South Ribble Council,http://statistics.data.gov.uk/doc/local-authority/30UN,Area 2 - Waste Transport/Eastern & Central Teams,Waste Disposal Charges,5112,March 2018 -  Incineration of Clinical Waste.,22/06/2018,0000440406,407.55,Revenue,LANCASHIRE TEACHING FT,00120715
South Ribble Council,http://statistics.data.gov.uk/doc/local-authority/30UN,Area 2 - Waste Transport/Eastern & Central Teams,External Contractors Charges,4570,SPEC REPAIR - JFC10523 - VK09AHJ - TH,22/06/2018,0000439976,"1,419.32",Revenue,Lancashire Waste Services Limited,131510
South Ribble Council,http://statistics.data.gov.uk/doc/local-authority/30UN,Area 2 - Waste Transport/Eastern & Central Teams,External Contractors Charges,4570,SPEC REPAIR - JFC10688 - VK09AHJ - TH,29/06/2018,0000440418,"3,157.17",Revenue,Lancashire Waste Services Limited,131510
South Ribble Council,http://statistics.data.gov.uk/doc/local-authority/30UN,Area 2 - Waste Transport/Eastern & Central Teams,External Contractors Charges,4570,REPAIR TO HOPPER/BODY - JFC10523 - VK09AHJ - TH,29/06/2018,0000440419,"4,549.09",Revenue,Lancashire Waste Services Limited,131510
South Ribble Council,http://statistics.data.gov.uk/doc/local-authority/30UN,Area 2 - Waste Transport/Eastern & Central Teams,Contract Hire & Lease Costs,3212,HIRE OF REFUSE WAGON - ON HIRE 8.5.18 FOR 2 WEEKS HIRE,29/06/2018,0000440420,"2,210.00",Revenue,Lancashire Waste Services Limited,131510
South Ribble Council,http://statistics.data.gov.uk/doc/local-authority/30UN,Shared Assurance Services,Contractors Charges 5,5413,Provision of Internal Audit service 36 days @ 325 per day,06/06/2018,0000440128,"4,875.00",Revenue,LANCS COUNTY COUNCIL,00041645
South Ribble Council,http://statistics.data.gov.uk/doc/local-authority/30UN,Legal,Other Local Authorities,4530,LAND CHARGES - MAY 2018,13/06/2018,0000440269,"1,425.00",Revenue,LANCS COUNTY COUNCIL,00041645
South Ribble Council,http://statistics.data.gov.uk/doc/local-authority/30UN,Regeneration,Capital Expenditure,C234,St Catherines park natural play area,22/06/2018,0000440260,"44,056.74",Revenue,LANDSCAPE ENGINEERING LIMITED,130416
South Ribble Council,http://statistics.data.gov.uk/doc/local-authority/30UN,Area 3 - Parks/Leyland East West,Grounds Maint Cntrctrs Chgs,4657,SIGN POSTS AND FIXINGS AS PER ATTACHED LIST.,29/06/2018,0000440576,765.05,Revenue,LCC SIGN SHOP,00027096
South Ribble Council,http://statistics.data.gov.uk/doc/local-authority/30UN,Property Services,Rep & Maint Premises,2020,2 X Site Safety Rules 1000 x 1000mm,29/06/2018,0000440622,226.62,Revenue,LCC SIGN SHOP,00027096
South Ribble Council,http://statistics.data.gov.uk/doc/local-authority/30UN,Property Services,Rep & Maint Premises,2020,1 x Site Opening Details 1000 x 1000mm,29/06/2018,0000440622,119.76,Revenue,LCC SIGN SHOP,00027096
South Ribble Council,http://statistics.data.gov.uk/doc/local-authority/30UN,Property Services,Materials General,4040,6 overlays for Worden Park Overflow Car Park Closing Times,29/06/2018,0000440622,43.56,Revenue,LCC SIGN SHOP,00027096
South Ribble Council,http://statistics.data.gov.uk/doc/local-authority/30UN,Area 3 - Parks/Leyland East West,Grounds Maint Cntrctrs Chgs,4657,2 x sheets Aluminium for skate ramp (2 x @125 x 189),06/06/2018,0000440033,281.00,Revenue,Leyland Lane Wrought Iron Gates & Railings,132012
South Ribble Council,http://statistics.data.gov.uk/doc/local-authority/30UN,Area 3 - Parks/Leyland East West,Grounds Maint Cntrctrs Chgs,4657,3 x kickabout frames to cut out mesh and replace with 20mm pipe- regalvanise and repaint (RAL6018) @ 1730.00 Repairs to,15/06/2018,0000440384,"1,805.00",Revenue,Leyland Lane Wrought Iron Gates & Railings,132012
South Ribble Council,http://statistics.data.gov.uk/doc/local-authority/30UN,Area 3 - Parks/Leyland East West,Grounds Maint Cntrctrs Chgs,4657,2No column root assembly for CCTV poles,27/06/2018,0000440565,365.00,Revenue,Leyland Lane Wrought Iron Gates & Railings,132012
South Ribble Council,http://statistics.data.gov.uk/doc/local-authority/30UN,Chief Executive`s Management,Training Expense-Course Fees,1402,LGA Annual Conference 3 - 5 July 2018 Attendee:  NAME REDACTED Location: Birmingham,15/06/2018,0000440280,545.00,Revenue,LGA (LOCAL GOVERNMENT ASSOCIATION),00042851
South Ribble Council,http://statistics.data.gov.uk/doc/local-authority/30UN,Democratic Services,Other Misc,4851,"LGA Annual Conference & Exhibition 20183 - 5th July 2018   ClNAME REDACTED",22/06/2018,0000440374,545.00,Revenue,LGA (LOCAL GOVERNMENT ASSOCIATION),00042851
South Ribble Council,http://statistics.data.gov.uk/doc/local-authority/30UN,Democratic Services,Other Misc,4851,Cllr NAME REDACTED,22/06/2018,0000440374,545.00,Revenue,LGA (LOCAL GOVERNMENT ASSOCIATION),00042851
South Ribble Council,http://statistics.data.gov.uk/doc/local-authority/30UN,Democratic Services,Other Misc,4851,Cllr NAME REDACTED,22/06/2018,0000440374,545.00,Revenue,LGA (LOCAL GOVERNMENT ASSOCIATION),00042851
South Ribble Council,http://statistics.data.gov.uk/doc/local-authority/30UN,Democratic Services,Other Misc,4851,Cllr NAME REDACTED,22/06/2018,0000440374,545.00,Revenue,LGA (LOCAL GOVERNMENT ASSOCIATION),00042851
South Ribble Council,http://statistics.data.gov.uk/doc/local-authority/30UN,Environmental Health,Training Expense-Course Fees,1420,Legal Training Course,22/06/2018,0000440563,523.50,Revenue,LIBERATA UK LTD,130663
South Ribble Council,http://statistics.data.gov.uk/doc/local-authority/30UN,Area 3 - Parks/Leyland East West,Materials General,4040,150 BAGS OF WESTLAND TOP SOIL (35 LTR BAGS),06/06/2018,0000440019,375.00,Revenue,LS Systems Ltd,132571
South Ribble Council,http://statistics.data.gov.uk/doc/local-authority/30UN,Governance & Business Transf Mgnt,Professional Fees,4520,Organisational Culture Review Feedback Event at South Ribble BC on Wednesday 13th June 2018  Includes: 1 x Visual Scribe - Event Documentation 7 x Production - Digital,29/06/2018,0000440342,290.00,Revenue,LUCY WRAY / THRIFT DESIGN,132584
South Ribble Council,http://statistics.data.gov.uk/doc/local-authority/30UN,Neighbourhood Admin & Support,Operational Furniture & Equip,4010,PADLOCKS � SQUIRE 660 T PASS KEY 9,06/06/2018,0000439922,197.21,Revenue,M A C BUILDING PRODUCTS LTD,00051059
South Ribble Council,http://statistics.data.gov.uk/doc/local-authority/30UN,Neighbourhood Admin & Support,Operational Furniture & Equip,4010,PADLOCKS  - SQUIRE 660 TO PASS KEY 10,06/06/2018,0000439922,197.21,Revenue,M A C BUILDING PRODUCTS LTD,00051059
South Ribble Council,http://statistics.data.gov.uk/doc/local-authority/30UN,Neighbourhood Admin & Support,Operational Furniture & Equip,4010,PADLOCKS  - SQUIRE 660 TO PASS KEY 10,27/06/2018,0000440475,328.68,Revenue,M A C BUILDING PRODUCTS LTD,00051059
South Ribble Council,http://statistics.data.gov.uk/doc/local-authority/30UN,Area 3 - Parks/Leyland East West,Grounds Maint Cntrctrs Chgs,4657,40 Tons White Limestone 19mm to dust @ 18.80 per tonne.,06/06/2018,0000440100,379.76,Revenue,M C & M A STEWART HAULAGE LTD,00035567
South Ribble Council,http://statistics.data.gov.uk/doc/local-authority/30UN,Area 3 - Parks/Leyland East West,Grounds Maint Cntrctrs Chgs,4657,40 Tons White Limestone 19mm to dust @ 18.80 per tonne.,06/06/2018,0000440104,379.01,Revenue,M C & M A STEWART HAULAGE LTD,00035567
South Ribble Council,http://statistics.data.gov.uk/doc/local-authority/30UN,Housing,Cap Grant- Improve Grants,C570,DFG WORK AT ADDRESS REDACTED � NEW PROGRESS PROPERTY - AGREED TO PAY 50% OF ORIGINAL QUOTE ,06/06/2018,0000440105,"1,143.23",Revenue,MAHONEY CONTRACTORS LTD,131271
South Ribble Council,http://statistics.data.gov.uk/doc/local-authority/30UN,Housing,Cap Grant- Improve Grants,C570,DFG WORK AT ADDRESS REDACTED AGREED TO PAY 50% COST 1350.00,06/06/2018,0000440106,"1,350.00",Revenue,MAHONEY CONTRACTORS LTD,131271
South Ribble Council,http://statistics.data.gov.uk/doc/local-authority/30UN,Housing,Cap Expend Other,C750,DFG WORKS TO FLOORING AT ADDRESS REDACTED COST 1725.00 50% of quote supplied BY New Progress Housing,13/06/2018,0000440251,"1,725.00",Revenue,MAHONEY CONTRACTORS LTD,131271
South Ribble Council,http://statistics.data.gov.uk/doc/local-authority/30UN,Housing,Cap Grant- Improve Grants,C570,DFG WORK AT ADDRESS REDACTED � NEW PROGRESS PROPERTY - AGREED TO PAY 50% OF ORIGINAL QUOTE,27/06/2018,0000440611,"1,350.00",Revenue,MAHONEY CONTRACTORS LTD,131271
South Ribble Council,http://statistics.data.gov.uk/doc/local-authority/30UN,Area 3 - Parks/Leyland East West,Grounds Maint Cntrctrs Chgs,4657,400No. A49 80mm Bricks @400 8m 19`` Copings @524.80  Please call NAME REDACTED on 07966998506 30 mins prior ,06/06/2018,0000440130,924.80,Revenue,MARTIN EDWARDS,00054768
South Ribble Council,http://statistics.data.gov.uk/doc/local-authority/30UN,Area 2 - Waste Transport/Eastern & Central Teams,External Contractors Charges,4570,CPNVERT TRAILER TO LED - JFC10524 - TR10A1 - TH,06/06/2018,0000440032,105.00,Revenue,MJC Auto Electrics,132514
South Ribble Council,http://statistics.data.gov.uk/doc/local-authority/30UN,Area 2 - Waste Transport/Eastern & Central Teams,External Contractors Charges,4570,TRACE FAULT IN WIRING CUASING MR WARNING ON DASH - JFC10493 - PJ62UCL - TH,06/06/2018,0000440032,140.00,Revenue,MJC Auto Electrics,132514
South Ribble Council,http://statistics.data.gov.uk/doc/local-authority/30UN,Area 2 - Waste Transport/Eastern & Central Teams,External Contractors Charges,4570,CHECK FAULT ON CENTRAL LOCKING AT O/S DOOR - JFC10525 - PN65HWJ - TH,06/06/2018,0000440032,157.00,Revenue,MJC Auto Electrics,132514
South Ribble Council,http://statistics.data.gov.uk/doc/local-authority/30UN,Area 3 - Parks/Leyland East West,Grounds Maint Cntrctrs Chgs,4657,2.5 m3 C35 concrete slump 75,29/06/2018,0000440664,300.00,Revenue,MOORE READYMIX,00112998
South Ribble Council,http://statistics.data.gov.uk/doc/local-authority/30UN,Revenues Plus,Agency Fees,1121,AGENCY COST May 2018,06/06/2018,0000440005,981.24,Revenue,MORGAN HUNT PUBLIC SECTOR LTD,00120401
South Ribble Council,http://statistics.data.gov.uk/doc/local-authority/30UN,Revenues Plus,Agency Fees,1121,AGENCY COST May 2018,08/06/2018,0000440215,914.94,Revenue,MORGAN HUNT PUBLIC SECTOR LTD,00120401
South Ribble Council,http://statistics.data.gov.uk/doc/local-authority/30UN,Area 1 - Penwortham Western Parishes,Professional Fees,4521,PROVISION OF STRAY DOG SERVICE - TO COVER MAY 2018,06/06/2018,0000440174,325.50,Revenue,MORNINGSIDE KENNELS,00067755
South Ribble Council,http://statistics.data.gov.uk/doc/local-authority/30UN,Revenues Plus,Balance Sheet,0001,,13/06/2018,0000440263,"7,078.52",Revenue,Mr Colin Potts T/a Artificial Grass Direct,132582
South Ribble Council,http://statistics.data.gov.uk/doc/local-authority/30UN,Information Services,Peripherals,4241,"2 x Samsung Galaxy Tab Active 2 @ 395 each, plus delivery, as per quote 175866",29/06/2018,0000440569,800.00,Revenue,MYPREMIER LTD,130091
South Ribble Council,http://statistics.data.gov.uk/doc/local-authority/30UN,Information Services,Peripherals,4241,"2 x Galaxy Tab S3 @ 610 each; 2 x Galaxy Tab S3 keyboard cover @ 75.21 each, plus delivery, as per quote 175867",29/06/2018,0000440570,"1,380.42",Revenue,MYPREMIER LTD,130091
South Ribble Council,http://statistics.data.gov.uk/doc/local-authority/30UN,HR & Communications,Professional Fees,4510,propf charges,08/06/2018,0000440195,250.00,Revenue,NAPTHENS LLP SOLICITORS,00104896
South Ribble Council,http://statistics.data.gov.uk/doc/local-authority/30UN,HR & Communications,Professional Fees,4510,NAME REDACTED Advising on Settlement Agreement,15/06/2018,0000440341,300.00,Revenue,NAPTHENS LLP SOLICITORS,00104896
South Ribble Council,http://statistics.data.gov.uk/doc/local-authority/30UN,Development Enterprise & Comm Mgnt,Other Misc,4851,Please supply goods for Leyland Festival as per Quotation 10164,22/06/2018,0000440511,"2,365.50",Revenue,NATIONWIDE MARQUEE HIRE LTD,130006
South Ribble Council,http://statistics.data.gov.uk/doc/local-authority/30UN,Development Enterprise & Comm Mgnt,Other Misc,4851,"Marquee hire for Fun with Flags event on  Wednesday May 30th @ 807.00 Location Worden Park, Leyland",22/06/2018,0000440539,807.00,Revenue,NATIONWIDE MARQUEE HIRE LTD,130006
South Ribble Council,http://statistics.data.gov.uk/doc/local-authority/30UN,Area 2 - Waste Transport/Eastern & Central Teams,External Contractors Charges,4570,1 M.O.T. - PO12JZC - JFC10596 - AW,13/06/2018,0000440230,35.00,Revenue,NAYLORS MOTOR SALES,00058036
South Ribble Council,http://statistics.data.gov.uk/doc/local-authority/30UN,Area 2 - Waste Transport/Eastern & Central Teams,External Contractors Charges,4570,1 GEARBOX AND CLUTCH REPAIR - PO12JZC - JFC10625 - AW,13/06/2018,0000440230,727.33,Revenue,NAYLORS MOTOR SALES,00058036
South Ribble Council,http://statistics.data.gov.uk/doc/local-authority/30UN,Area 2 - Waste Transport/Eastern & Central Teams,External Contractors Charges,4570,STEAM CLEAN - JFC10403 - VO65 KPZ,13/06/2018,0000440140,65.00,Revenue,NAYLORS TRANSPORT (LEYLAND) ltd,00114828
South Ribble Council,http://statistics.data.gov.uk/doc/local-authority/30UN,Area 2 - Waste Transport/Eastern & Central Teams,External Contractors Charges,4570,STEAM CLEAN- JFC10407 - VO65 KRD,13/06/2018,0000440140,65.00,Revenue,NAYLORS TRANSPORT (LEYLAND) ltd,00114828
South Ribble Council,http://statistics.data.gov.uk/doc/local-authority/30UN,Area 2 - Waste Transport/Eastern & Central Teams,External Contractors Charges,4570,STEAM CLEAN - JFC10410 - VO65 KRE,13/06/2018,0000440140,65.00,Revenue,NAYLORS TRANSPORT (LEYLAND) ltd,00114828
South Ribble Council,http://statistics.data.gov.uk/doc/local-authority/30UN,Area 2 - Waste Transport/Eastern & Central Teams,External Contractors Charges,4570,STEAM CLEAN - JFC10412 - PO13 UUM,13/06/2018,0000440140,65.00,Revenue,NAYLORS TRANSPORT (LEYLAND) ltd,00114828
South Ribble Council,http://statistics.data.gov.uk/doc/local-authority/30UN,Area 2 - Waste Transport/Eastern & Central Teams,External Contractors Charges,4570,STEAM CLEAN - JFC10415 - MX04 YNL,13/06/2018,0000440140,65.00,Revenue,NAYLORS TRANSPORT (LEYLAND) ltd,00114828
South Ribble Council,http://statistics.data.gov.uk/doc/local-authority/30UN,Area 2 - Waste Transport/Eastern & Central Teams,External Contractors Charges,4570,STEAM CLEAN -  JFC10418 - PJ62 UCL,13/06/2018,0000440140,65.00,Revenue,NAYLORS TRANSPORT (LEYLAND) ltd,00114828
South Ribble Council,http://statistics.data.gov.uk/doc/local-authority/30UN,Area 2 - Waste Transport/Eastern & Central Teams,External Contractors Charges,4570,STEAM CLEAN - JFC10420 - YP11 CFM,13/06/2018,0000440140,65.00,Revenue,NAYLORS TRANSPORT (LEYLAND) ltd,00114828
South Ribble Council,http://statistics.data.gov.uk/doc/local-authority/30UN,Area 2 - Waste Transport/Eastern & Central Teams,External Contractors Charges,4570,x two - STEAM CLEAN - JFC10423 - VO65 KPY,13/06/2018,0000440140,130.00,Revenue,NAYLORS TRANSPORT (LEYLAND) ltd,00114828
South Ribble Council,http://statistics.data.gov.uk/doc/local-authority/30UN,Area 2 - Waste Transport/Eastern & Central Teams,External Contractors Charges,4570,STEAM CLEAN - JFC10425 - VK09 AHJ,13/06/2018,0000440140,75.00,Revenue,NAYLORS TRANSPORT (LEYLAND) ltd,00114828
South Ribble Council,http://statistics.data.gov.uk/doc/local-authority/30UN,Area 2 - Waste Transport/Eastern & Central Teams,External Contractors Charges,4570,STEAM CLEAN - JFC10429 - PJ62 UCH,13/06/2018,0000440140,65.00,Revenue,NAYLORS TRANSPORT (LEYLAND) ltd,00114828
South Ribble Council,http://statistics.data.gov.uk/doc/local-authority/30UN,Area 2 - Waste Transport/Eastern & Central Teams,External Contractors Charges,4570,STEAM CLEAN - JFC10431 - PJ62 UCM,13/06/2018,0000440140,65.00,Revenue,NAYLORS TRANSPORT (LEYLAND) ltd,00114828
South Ribble Council,http://statistics.data.gov.uk/doc/local-authority/30UN,Area 2 - Waste Transport/Eastern & Central Teams,External Contractors Charges,4570,STEAM CLEAN JFC10434 - VO65 KPX,13/06/2018,0000440140,65.00,Revenue,NAYLORS TRANSPORT (LEYLAND) ltd,00114828
South Ribble Council,http://statistics.data.gov.uk/doc/local-authority/30UN,Area 2 - Waste Transport/Eastern & Central Teams,External Contractors Charges,4570,STEAM CLEAN JFC10436 - VO65 KRF,13/06/2018,0000440140,65.00,Revenue,NAYLORS TRANSPORT (LEYLAND) ltd,00114828
South Ribble Council,http://statistics.data.gov.uk/doc/local-authority/30UN,Homelessness,Contributions,4730,SRBC contribution to rent arrears for ADDRESS REDACTED,06/06/2018,0000439763,"1,238.39",Revenue,NEW PROGRESS HOUSING ASSOC ref:DNSOU001,00030135
South Ribble Council,http://statistics.data.gov.uk/doc/local-authority/30UN,Healthy Communities,Operational Furniture & Equip,4010,"more cups, jugs, glasses, milk flasks May 18",13/06/2018,0000440031,252.26,Revenue,NISBETS,00030164
South Ribble Council,http://statistics.data.gov.uk/doc/local-authority/30UN,HR & Communications,Training Expense-Course Fees,1405,DELIVERY OF PROJECT MANAGEMENT TRAINING ON 2 MAY AND 24 MAY 2018 AT SOUTH RIBBLE BOROUGH COUNCIL,13/06/2018,0000440301,"1,600.00",Revenue,NORTH WEST EMPLOYERS,00029829
South Ribble Council,http://statistics.data.gov.uk/doc/local-authority/30UN,HR & Communications,Training Expense-Course Fees,1405,TRAVEL EXPENSES X 2,13/06/2018,0000440301,100.80,Revenue,NORTH WEST EMPLOYERS,00029829
South Ribble Council,http://statistics.data.gov.uk/doc/local-authority/30UN,Area 1 - Penwortham Western Parishes,Professional Fees,4514,DEPLOYMENT OF OFFICERS - MAY 2018,06/06/2018,0000440142,"1,320.75",Revenue,NSL LTD,00116868
South Ribble Council,http://statistics.data.gov.uk/doc/local-authority/30UN,Area 1 - Penwortham Western Parishes,Other Misc,4855,CASH COLLECTION AND RING-GO CHARGES - MAY 2018,06/06/2018,0000440142,485.74,Revenue,NSL LTD,00116868
South Ribble Council,http://statistics.data.gov.uk/doc/local-authority/30UN,Planning,Agency Fees,1121,NAME REDACTED Consultant 3 months at 46p,13/06/2018,0000439939,"2,484.00",Revenue,Park Avenue Recruitment,132388
South Ribble Council,http://statistics.data.gov.uk/doc/local-authority/30UN,Planning,Agency Fees,1121,NAME REDACTED Consultant 3 months at 46p,08/06/2018,0000440029,"1,794.00",Revenue,Park Avenue Recruitment,132388
South Ribble Council,http://statistics.data.gov.uk/doc/local-authority/30UN,Planning,Agency Fees,1121,NAME REDACTED Consultant at 46p,15/06/2018,0000440389,"1,391.50",Revenue,Park Avenue Recruitment,132388
South Ribble Council,http://statistics.data.gov.uk/doc/local-authority/30UN,HR & Communications,Training Expense-Course Fees,1408,Online Pre-Employment Screening x 20,13/06/2018,0000440299,259.00,Revenue,People Asset Management,132492
South Ribble Council,http://statistics.data.gov.uk/doc/local-authority/30UN,Property Services,Operational Furniture & Equip,4012,2018 / 2019 contract for the provision of sanitary services at the Civic Centre,29/06/2018,0000440615,982.31,Revenue,PHS GROUP PLC,00031309
South Ribble Council,http://statistics.data.gov.uk/doc/local-authority/30UN,Property Services,Operational Furniture & Equip,4012,"2018 / 2019 contract for the provision of sanitary services at Moss Side Depot, Bison Place, Leyland",29/06/2018,0000440616,405.89,Revenue,PHS GROUP PLC,00031309
South Ribble Council,http://statistics.data.gov.uk/doc/local-authority/30UN,Area 2 - Waste Transport/Eastern & Central Teams,Materials General,4040,1000 litres Bulk Hydraulic Oil @ 73p per litre,22/06/2018,0000440474,704.45,Revenue,PILKINGTON OILS,00113531
South Ribble Council,http://statistics.data.gov.uk/doc/local-authority/30UN,Revenues Plus,Peripherals,4242,Additional modelling for council tax support scheme,29/06/2018,0000440641,"2,500.00",Revenue,Policy in Practice,132414
South Ribble Council,http://statistics.data.gov.uk/doc/local-authority/30UN,Area 2 - Waste Transport/Eastern & Central Teams,Vehicle Running Costs,3137,,15/06/2018,0000440381,650.00,Revenue,POST OFFICE LTD,00031354
South Ribble Council,http://statistics.data.gov.uk/doc/local-authority/30UN,Area 2 - Waste Transport/Eastern & Central Teams,Vehicle Running Costs,3137,,15/06/2018,0000440381,250.00,Revenue,POST OFFICE LTD,00031354
South Ribble Council,http://statistics.data.gov.uk/doc/local-authority/30UN,Area 2 - Waste Transport/Eastern & Central Teams,Vehicle Running Costs,3137,,15/06/2018,0000440381,250.00,Revenue,POST OFFICE LTD,00031354
South Ribble Council,http://statistics.data.gov.uk/doc/local-authority/30UN,Area 2 - Waste Transport/Eastern & Central Teams,Vehicle Running Costs,3137,,15/06/2018,0000440382,250.00,Revenue,POST OFFICE LTD,00031354
South Ribble Council,http://statistics.data.gov.uk/doc/local-authority/30UN,Area 2 - Waste Transport/Eastern & Central Teams,Vehicle Running Costs,3137,,15/06/2018,0000440382,250.00,Revenue,POST OFFICE LTD,00031354
South Ribble Council,http://statistics.data.gov.uk/doc/local-authority/30UN,Area 2 - Waste Transport/Eastern & Central Teams,Vehicle Running Costs,3137,,15/06/2018,0000440382,250.00,Revenue,POST OFFICE LTD,00031354
South Ribble Council,http://statistics.data.gov.uk/doc/local-authority/30UN,Area 2 - Waste Transport/Eastern & Central Teams,Vehicle Running Costs,3137,,15/06/2018,0000440382,250.00,Revenue,POST OFFICE LTD,00031354
South Ribble Council,http://statistics.data.gov.uk/doc/local-authority/30UN,Shared Assurance Services,Other Misc,4851,"4 x High back Gas Lift Pump Lumbar back Operator chair Seat Slide, No arms in Scuba YP082 with Black Nylon base per quote",13/06/2018,0000440292,558.00,Revenue,PREMIER OFFICE SUPPLES (UK) LTD,00090159
South Ribble Council,http://statistics.data.gov.uk/doc/local-authority/30UN,Information Services,Stationery,4133,"50,000 sheets Evolution Everyday A4 80gm 2500 sheets   Papago  A4 80gm Canary 5000 sheets Evolution Everyday A3 80gm",15/06/2018,0000440359,322.33,Revenue,PREMIER PAPER GROUP LTD,00022606
South Ribble Council,http://statistics.data.gov.uk/doc/local-authority/30UN,Planning,Professional Fees,4510,"2018 Membership of Leeds CIL group  for the Central Lancashire authorities(Preston, Chorley and South Ribble Councils)",08/06/2018,0000439965,500.00,Revenue,Preston City Council,131913
South Ribble Council,http://statistics.data.gov.uk/doc/local-authority/30UN,Area 2 - Waste Transport/Eastern & Central Teams,External Contractors Charges,4570,TYRE REPAIRS/REPLACEMENTS - TR187 - TH,06/06/2018,0000440026,446.75,Revenue,PRESTON TYRE SPECIALISTS,00109516
South Ribble Council,http://statistics.data.gov.uk/doc/local-authority/30UN,Area 2 - Waste Transport/Eastern & Central Teams,Materials General,4040,3 NEW TYRES - JFC10679 - YJ13YJU - SH,15/06/2018,0000440207,367.40,Revenue,PRESTON TYRE SPECIALISTS,00109516
South Ribble Council,http://statistics.data.gov.uk/doc/local-authority/30UN,Area 2 - Waste Transport/Eastern & Central Teams,External Contractors Charges,4570,TYRE REPAIRS - TR189 - TH,22/06/2018,0000440404,397.80,Revenue,PRESTON TYRE SPECIALISTS,00109516
South Ribble Council,http://statistics.data.gov.uk/doc/local-authority/30UN,Democratic Services,Printing,4127,"Print Image (printing) �  12,000 white outer envelopes",06/06/2018,0000439935,444.80,Revenue,PRINT IMAGE NETWORK LTD,00089199
South Ribble Council,http://statistics.data.gov.uk/doc/local-authority/30UN,Area 3 - Parks/Leyland East West,Contract Hire & Lease Costs,3212,1 x 1.5 ton mini excavator on hire 16/05/2018,22/06/2018,0000440450,286.00,Revenue,Readyplant Limited,131535
South Ribble Council,http://statistics.data.gov.uk/doc/local-authority/30UN,Property Services,Rep & Maint Premises,2020,Replace two manhole covers with suitable ones that are on the park by the kiosk one of which is marked by red and white tape ,13/06/2018,0000440220,240.00,Revenue,RED ROSE BUILDING MAINTENANCE,00085410
South Ribble Council,http://statistics.data.gov.uk/doc/local-authority/30UN,Property Services,Rep & Maint Premises,2020,materials,13/06/2018,0000440220,420.00,Revenue,RED ROSE BUILDING MAINTENANCE,00085410
South Ribble Council,http://statistics.data.gov.uk/doc/local-authority/30UN,Homelessness,Contractors Charges 5,5311,"OSM for July, August and September 2018",27/06/2018,0000440573,"5,624.90",Revenue,REDDY & CO,00108177
South Ribble Council,http://statistics.data.gov.uk/doc/local-authority/30UN,Planning,Other Misc,485R,fees plan app 7/20183737/ful trans as within their borough,20/06/2018,0000440401,462.00,Revenue,Ribble Valley Borough Council,131651
South Ribble Council,http://statistics.data.gov.uk/doc/local-authority/30UN,Healthy Communities,Grants to Vol Bodies,4711,grant,13/06/2018,0000438520,250.00,Revenue,Ribble Valley Juniors Cycling Club,132516
South Ribble Council,http://statistics.data.gov.uk/doc/local-authority/30UN,Housing,Cap Grant- Improve Grants,C570,"DFG WORKS TO BEDROOM/BATHROOM EXTENSION FOR NAME REDACRED, ADDRESS REDACTED OWN DRAWINGS ",13/06/2018,0000440315,"14,969.93",Revenue,RICHARD BAILEY BUILDER AND JOINER,131419
South Ribble Council,http://statistics.data.gov.uk/doc/local-authority/30UN,Area 3 - Parks/Leyland East West,Materials General,4046,22KG OF RAINBOW ANNUALS SEED,15/06/2018,0000440219,"3,630.00",Revenue,RIGBY TAYLOR LTD,00033145
South Ribble Council,http://statistics.data.gov.uk/doc/local-authority/30UN,Property Services,Other Misc,485C,,06/06/2018,0000440132,100.00,Revenue,ROUNDHOUSE PROPERTIES LTD,131973
South Ribble Council,http://statistics.data.gov.uk/doc/local-authority/30UN,Property Services,Other Misc,485C,,06/06/2018,0000440132,100.00,Revenue,ROUNDHOUSE PROPERTIES LTD,131973
South Ribble Council,http://statistics.data.gov.uk/doc/local-authority/30UN,Property Services,Other Misc,485C,,06/06/2018,0000440132,100.00,Revenue,ROUNDHOUSE PROPERTIES LTD,131973
South Ribble Council,http://statistics.data.gov.uk/doc/local-authority/30UN,Property Services,Other Misc,485C,,06/06/2018,0000440132,100.00,Revenue,ROUNDHOUSE PROPERTIES LTD,131973
South Ribble Council,http://statistics.data.gov.uk/doc/local-authority/30UN,Property Services,Other Misc,485C,,06/06/2018,0000440132,100.00,Revenue,ROUNDHOUSE PROPERTIES LTD,131973
South Ribble Council,http://statistics.data.gov.uk/doc/local-authority/30UN,Information Services,Postage,4295,,13/06/2018,0000440335,265.10,Revenue,ROYAL MAIL GROUP PLC,00033543
South Ribble Council,http://statistics.data.gov.uk/doc/local-authority/30UN,Area 2 - Waste Transport/Eastern & Central Teams,External Contractors Charges,4570,SPEC REPAIR - JFC10665 - MX04YNL - TH,06/06/2018,0000440030,"1,630.60",Revenue,RTS Muni,132454
South Ribble Council,http://statistics.data.gov.uk/doc/local-authority/30UN,Area 3 - Parks/Leyland East West,Grounds Maint Cntrctrs Chgs,4657,Quotation Ref 56224-001-001 1x Replacement Net for Jupiter,08/06/2018,0000439130,"7,668.00",Revenue,RUSSELL LEISURE LTD,00033909
South Ribble Council,http://statistics.data.gov.uk/doc/local-authority/30UN,Area 3 - Parks/Leyland East West,Grounds Maint Cntrctrs Chgs,4657,1x Access Net for Jupiter,08/06/2018,0000439130,"1,176.00",Revenue,RUSSELL LEISURE LTD,00033909
South Ribble Council,http://statistics.data.gov.uk/doc/local-authority/30UN,Area 3 - Parks/Leyland East West,Grounds Maint Cntrctrs Chgs,4657,Remove Old Net and Dispose of to approved tip fit new nets.,08/06/2018,0000439130,"1,200.00",Revenue,RUSSELL LEISURE LTD,00033909
South Ribble Council,http://statistics.data.gov.uk/doc/local-authority/30UN,Area 3 - Parks/Leyland East West,Grounds Maint Cntrctrs Chgs,4657,Carriage,08/06/2018,0000439130,884.50,Revenue,RUSSELL LEISURE LTD,00033909
South Ribble Council,http://statistics.data.gov.uk/doc/local-authority/30UN,Environmental Health,Other Misc,4851,Commonwealth Afternoon African Drums.,22/06/2018,0000440497,250.00,Revenue,SALSA NORTHWEST,132557
South Ribble Council,http://statistics.data.gov.uk/doc/local-authority/30UN,Legal,Capital Expenditure,C230,PROFESSIONAL SERVICES RENDERED IN PROVIDING SUPPORT AND ADVICE TO IN RELATION TO McKENZIE ARMS,13/06/2018,0000439811,"5,375.00",Revenue,Sanderson Weatherall LLP,132534
South Ribble Council,http://statistics.data.gov.uk/doc/local-authority/30UN,Property Services,Energy Costs,2303,1/4/18 to 30/4/18,06/06/2018,0000440058,392.32,Revenue,SCOTTISH HYDRO ELECTRIC,130051
South Ribble Council,http://statistics.data.gov.uk/doc/local-authority/30UN,Property Services,Energy Costs,2307,CCL,06/06/2018,0000440058,19.61,Revenue,SCOTTISH HYDRO ELECTRIC,130051
South Ribble Council,http://statistics.data.gov.uk/doc/local-authority/30UN,Property Services,Energy Costs,2303,16/2/18 to 18/5/18,06/06/2018,0000440062,805.74,Revenue,SCOTTISH HYDRO ELECTRIC,130051
South Ribble Council,http://statistics.data.gov.uk/doc/local-authority/30UN,Property Services,Energy Costs,2307,CCL,06/06/2018,0000440062,37.69,Revenue,SCOTTISH HYDRO ELECTRIC,130051
South Ribble Council,http://statistics.data.gov.uk/doc/local-authority/30UN,Property Services,Energy Costs,2303,1/4/18 to 30/4/18,06/06/2018,0000440067,"3,163.62",Revenue,SCOTTISH HYDRO ELECTRIC,130051
South Ribble Council,http://statistics.data.gov.uk/doc/local-authority/30UN,Property Services,Energy Costs,2307,CCL,06/06/2018,0000440067,168.61,Revenue,SCOTTISH HYDRO ELECTRIC,130051
South Ribble Council,http://statistics.data.gov.uk/doc/local-authority/30UN,Property Services,Energy Costs,2303,1/12/17 to 6/3/18,06/06/2018,0000440068,465.76,Revenue,SCOTTISH HYDRO ELECTRIC,130051
South Ribble Council,http://statistics.data.gov.uk/doc/local-authority/30UN,Property Services,Energy Costs,2307,CCL,06/06/2018,0000440068,21.62,Revenue,SCOTTISH HYDRO ELECTRIC,130051
South Ribble Council,http://statistics.data.gov.uk/doc/local-authority/30UN,Property Services,Energy Costs,2303,17/1/18 to 14/5/18,06/06/2018,0000440069,"1,073.62",Revenue,SCOTTISH HYDRO ELECTRIC,130051
South Ribble Council,http://statistics.data.gov.uk/doc/local-authority/30UN,Property Services,Energy Costs,2307,CCL,06/06/2018,0000440069,52.08,Revenue,SCOTTISH HYDRO ELECTRIC,130051
South Ribble Council,http://statistics.data.gov.uk/doc/local-authority/30UN,Property Services,Energy Costs,2303,2/1/18 to 1/4/18,06/06/2018,0000440070,340.84,Revenue,SCOTTISH HYDRO ELECTRIC,130051
South Ribble Council,http://statistics.data.gov.uk/doc/local-authority/30UN,Property Services,Energy Costs,2303,17/2/18 to 14/5/18,06/06/2018,0000440072,"1,142.49",Revenue,SCOTTISH HYDRO ELECTRIC,130051
South Ribble Council,http://statistics.data.gov.uk/doc/local-authority/30UN,Property Services,Energy Costs,2307,CCL,06/06/2018,0000440072,52.09,Revenue,SCOTTISH HYDRO ELECTRIC,130051
South Ribble Council,http://statistics.data.gov.uk/doc/local-authority/30UN,Property Services,Energy Costs,2303,1/4/18 to 30/4/18,06/06/2018,0000440074,"1,580.59",Revenue,SCOTTISH HYDRO ELECTRIC,130051
South Ribble Council,http://statistics.data.gov.uk/doc/local-authority/30UN,Property Services,Energy Costs,2307,CCL,06/06/2018,0000440074,89.27,Revenue,SCOTTISH HYDRO ELECTRIC,130051
South Ribble Council,http://statistics.data.gov.uk/doc/local-authority/30UN,Property Services,Energy Costs,2303,1/4/18 to 30/4/18,06/06/2018,0000440075,845.95,Revenue,SCOTTISH HYDRO ELECTRIC,130051
South Ribble Council,http://statistics.data.gov.uk/doc/local-authority/30UN,Property Services,Energy Costs,2307,CCl,06/06/2018,0000440075,44.45,Revenue,SCOTTISH HYDRO ELECTRIC,130051
South Ribble Council,http://statistics.data.gov.uk/doc/local-authority/30UN,Property Services,Energy Costs,2304,4/4/18 to 2/5/18,13/06/2018,0000440245,881.63,Revenue,SCOTTISH HYDRO ELECTRIC,130051
South Ribble Council,http://statistics.data.gov.uk/doc/local-authority/30UN,Property Services,Energy Costs,2307,CCL,13/06/2018,0000440245,70.50,Revenue,SCOTTISH HYDRO ELECTRIC,130051
South Ribble Council,http://statistics.data.gov.uk/doc/local-authority/30UN,Property Services,Energy Costs,2304,28/2/18 to 29/5/18,13/06/2018,0000440246,"1,211.56",Revenue,SCOTTISH HYDRO ELECTRIC,130051
South Ribble Council,http://statistics.data.gov.uk/doc/local-authority/30UN,Property Services,Energy Costs,2307,CCL,13/06/2018,0000440246,112.62,Revenue,SCOTTISH HYDRO ELECTRIC,130051
South Ribble Council,http://statistics.data.gov.uk/doc/local-authority/30UN,Property Services,Energy Costs,2303,16/2/18 to 18/5/18,22/06/2018,0000440512,"1,657.20",Revenue,SCOTTISH HYDRO ELECTRIC,130051
South Ribble Council,http://statistics.data.gov.uk/doc/local-authority/30UN,Property Services,Energy Costs,2307,CCL,22/06/2018,0000440512,78.29,Revenue,SCOTTISH HYDRO ELECTRIC,130051
South Ribble Council,http://statistics.data.gov.uk/doc/local-authority/30UN,Property Services,Energy Costs,2303,2/2/18 to 1/6/18,22/06/2018,0000440520,289.12,Revenue,SCOTTISH HYDRO ELECTRIC,130051
South Ribble Council,http://statistics.data.gov.uk/doc/local-authority/30UN,Property Services,Energy Costs,2303,1/5/18 to 31/5/18,22/06/2018,0000440521,353.90,Revenue,SCOTTISH HYDRO ELECTRIC,130051
South Ribble Council,http://statistics.data.gov.uk/doc/local-authority/30UN,Property Services,Energy Costs,2307,CCL,22/06/2018,0000440521,17.66,Revenue,SCOTTISH HYDRO ELECTRIC,130051
South Ribble Council,http://statistics.data.gov.uk/doc/local-authority/30UN,Property Services,Energy Costs,2303,1/5/18 to 31/5/18,22/06/2018,0000440526,"3,101.46",Revenue,SCOTTISH HYDRO ELECTRIC,130051
South Ribble Council,http://statistics.data.gov.uk/doc/local-authority/30UN,Property Services,Energy Costs,2307,CCl,22/06/2018,0000440526,164.48,Revenue,SCOTTISH HYDRO ELECTRIC,130051
South Ribble Council,http://statistics.data.gov.uk/doc/local-authority/30UN,Property Services,Energy Costs,2303,1/5/18 to 31/5/18,22/06/2018,0000440532,"1,570.09",Revenue,SCOTTISH HYDRO ELECTRIC,130051
South Ribble Council,http://statistics.data.gov.uk/doc/local-authority/30UN,Property Services,Energy Costs,2307,CCL,22/06/2018,0000440532,88.38,Revenue,SCOTTISH HYDRO ELECTRIC,130051
South Ribble Council,http://statistics.data.gov.uk/doc/local-authority/30UN,Property Services,Energy Costs,2303,1/5/18 to 31/5/18,22/06/2018,0000440533,896.01,Revenue,SCOTTISH HYDRO ELECTRIC,130051
South Ribble Council,http://statistics.data.gov.uk/doc/local-authority/30UN,Property Services,Energy Costs,2307,CCL,22/06/2018,0000440533,47.82,Revenue,SCOTTISH HYDRO ELECTRIC,130051
South Ribble Council,http://statistics.data.gov.uk/doc/local-authority/30UN,Revenues Plus,Balance Sheet,0001,,13/06/2018,0000440266,600.00,Revenue,SERCO LEISURE (OP) LTD,00094906
South Ribble Council,http://statistics.data.gov.uk/doc/local-authority/30UN,Customer Contact,Training Expense-Course Fees,1402,reserve 2 x places on the  Homelessness Law - Introduction at Manchester on November 7th 8th 2018 for NAMES REDACTED  ,20/06/2018,0000440451,460.00,Revenue,SHELTER PUBLICATIONS,00034568
South Ribble Council,http://statistics.data.gov.uk/doc/local-authority/30UN,Information Services,Professional Fees,4520,Shredding of Confidential Waste 2018/19,08/06/2018,0000440198,266.60,Revenue,SHRED-IT LTD,00109134
South Ribble Council,http://statistics.data.gov.uk/doc/local-authority/30UN,Area 2 - Waste Transport/Eastern & Central Teams,External Contractors Charges,4570,Supply and fit livery to VK18 KLC - JFC10544,06/06/2018,0000440184,543.25,Revenue,Signs Express,131658
South Ribble Council,http://statistics.data.gov.uk/doc/local-authority/30UN,Information Services,Peripherals,4248,10 x Blackberry Enterprise Mobility Suite - Enterprise Subscription User - Advantage Support Start Date 30/06/18 - 29/06/19,13/06/2018,0000440346,449.00,Revenue,SOFTCAT LIMITED,130963
South Ribble Council,http://statistics.data.gov.uk/doc/local-authority/30UN,Information Services,Peripherals,4248,170 x Blackberry Enterprise Mobility Suite - Collaboration Edition Subscription Advantage Support Start Date 30/06/18  29/06/19,13/06/2018,0000440346,"15,267.70",Revenue,SOFTCAT LIMITED,130963
South Ribble Council,http://statistics.data.gov.uk/doc/local-authority/30UN,Information Services,Peripherals,4248,10 Blackberry Enterprise Mobility Suite Collaboration Edition Subscription User Advantage Support Start Date 01/03/18 29/06/19,13/06/2018,0000440346,"1,197.40",Revenue,SOFTCAT LIMITED,130963
South Ribble Council,http://statistics.data.gov.uk/doc/local-authority/30UN,Development Enterprise & Comm Mgnt,Other Misc,4851,Supply Leyland Festival  programme leaflet  A 5 4pp emailed proof - as per NAME REDACTED 150 gsm gloss art paper trimmed,27/06/2018,0000440580,275.00,Revenue,SPRINTPRINT (PRESTON),131207
South Ribble Council,http://statistics.data.gov.uk/doc/local-authority/30UN,Property Services,Rents,2401,"2018 / 2019 rental fees for Forward industrial estate, Talbot Road, Leyland PR25 2ZJ. Property Ref 2710/081",08/06/2018,0000440121,"16,147.50",Revenue,STONEWELL PROPERTY COMPANY LTD,00118138
South Ribble Council,http://statistics.data.gov.uk/doc/local-authority/30UN,Property Services,Client Internal Charges,4590,2018 / 2019 fees for front end loader weekly exchange at Leyland Market,13/06/2018,0000440294,403.86,Revenue,SUEZ  RECYCLING AND REC UK LTD 80005291,00038920
South Ribble Council,http://statistics.data.gov.uk/doc/local-authority/30UN,Property Services,Client Internal Charges,4590,2018 / 2019 monthly rental fees for the RORO at Leyland Market,13/06/2018,0000440294,65.00,Revenue,SUEZ  RECYCLING AND REC UK LTD 80005291,00038920
South Ribble Council,http://statistics.data.gov.uk/doc/local-authority/30UN,Property Services,Rep & Maint Premises,2020,Please supply cleaning products for the Civic Centre,08/06/2018,0000440155,256.06,Revenue,System Hygiene Ltd,132495
South Ribble Council,http://statistics.data.gov.uk/doc/local-authority/30UN,Property Services,Professional Fees,4510,"Fee for acting as agents for the leasing of units 3 & 4Momentum Business Park, Bamber Bridge",20/06/2018,0000440392,502.50,Revenue,Taylor Weaver,132355
South Ribble Council,http://statistics.data.gov.uk/doc/local-authority/30UN,Property Services,Professional Fees,4510,"Fee for acting as agents for the leasing of units 3 & 4Momentum Business Park, Bamber Bridge",20/06/2018,0000440392,502.50,Revenue,Taylor Weaver,132355
South Ribble Council,http://statistics.data.gov.uk/doc/local-authority/30UN,Area 2 - Waste Transport/Eastern & Central Teams,Materials General,4040,1 SIDE PANEL (26921) - JFC10459 - VO65KRF - TH,15/06/2018,0000439960,664.66,Revenue,TERBERG MATEC UK LTD,00058625
South Ribble Council,http://statistics.data.gov.uk/doc/local-authority/30UN,Area 2 - Waste Transport/Eastern & Central Teams,External Contractors Charges,4570,BIN LIFT NO WORKING - PJ62 UCH - JFC10673,22/06/2018,0000440156,259.55,Revenue,TERBERG MATEC UK LTD,00058625
South Ribble Council,http://statistics.data.gov.uk/doc/local-authority/30UN,Area 2 - Waste Transport/Eastern & Central Teams,Materials General,4040,"1 SENSOR, 1 LEAD - VO65KRF - JFC10575 - AW",13/06/2018,0000440182,523.72,Revenue,TERBERG MATEC UK LTD,00058625
South Ribble Council,http://statistics.data.gov.uk/doc/local-authority/30UN,Area 2 - Waste Transport/Eastern & Central Teams,Materials General,4040,1 bin clamp shocker VO65 KRE JFC10861,13/06/2018,0000440183,381.10,Revenue,TERBERG MATEC UK LTD,00058625
South Ribble Council,http://statistics.data.gov.uk/doc/local-authority/30UN,Area 2 - Waste Transport/Eastern & Central Teams,Materials General,4040,"1 SIDE PANEL, 1 SAFETY FIN, 1 DECAL, 1 LAMP AND WIRING LOOM, 1 SENSOR AND LOOM - VO65KRD JFC10719 - AW",15/06/2018,0000440329,951.13,Revenue,TERBERG MATEC UK LTD,00058625
South Ribble Council,http://statistics.data.gov.uk/doc/local-authority/30UN,Area 2 - Waste Transport/Eastern & Central Teams,External Contractors Charges,4570,SPEC REPAIR - JFC10682 - PJ62UCH,22/06/2018,0000440340,62.21,Revenue,TERBERG MATEC UK LTD,00058625
South Ribble Council,http://statistics.data.gov.uk/doc/local-authority/30UN,Area 2 - Waste Transport/Eastern & Central Teams,External Contractors Charges,4570,SPEC REPAIR - JFC10683 - PJ62UCL,22/06/2018,0000440340,62.21,Revenue,TERBERG MATEC UK LTD,00058625
South Ribble Council,http://statistics.data.gov.uk/doc/local-authority/30UN,Area 2 - Waste Transport/Eastern & Central Teams,External Contractors Charges,4570,SPEC REPAIR - JFC10684 - PJ62UCG,22/06/2018,0000440340,62.20,Revenue,TERBERG MATEC UK LTD,00058625
South Ribble Council,http://statistics.data.gov.uk/doc/local-authority/30UN,Area 2 - Waste Transport/Eastern & Central Teams,External Contractors Charges,4570,SPEC REPAIR - JFC10685 - VO65KPX,22/06/2018,0000440340,62.20,Revenue,TERBERG MATEC UK LTD,00058625
South Ribble Council,http://statistics.data.gov.uk/doc/local-authority/30UN,Area 2 - Waste Transport/Eastern & Central Teams,External Contractors Charges,4570,SPEC REPAIR - JFC10686 - VO65KPY,22/06/2018,0000440340,62.20,Revenue,TERBERG MATEC UK LTD,00058625
South Ribble Council,http://statistics.data.gov.uk/doc/local-authority/30UN,Area 2 - Waste Transport/Eastern & Central Teams,External Contractors Charges,4570,SPEC REPAIR - JFC10687 - YP11CFM,22/06/2018,0000440340,62.20,Revenue,TERBERG MATEC UK LTD,00058625
South Ribble Council,http://statistics.data.gov.uk/doc/local-authority/30UN,Area 2 - Waste Transport/Eastern & Central Teams,External Contractors Charges,4570,SPEC REPAIR - PJ62UCH - JFC10715 - AW,22/06/2018,0000440408,717.62,Revenue,TERBERG MATEC UK LTD,00058625
South Ribble Council,http://statistics.data.gov.uk/doc/local-authority/30UN,Environmental Health,Other Misc,4869,"Designated Safeguarding Officer Children and Adults at risk� training  to be delivered by Athena,  per NAME REDACTED",27/06/2018,0000440378,990.00,Revenue,THE ATHENA PROGRAMME LIMITED,132580
South Ribble Council,http://statistics.data.gov.uk/doc/local-authority/30UN,Environmental Health,Other Misc,4869,mileage,27/06/2018,0000440378,13.00,Revenue,THE ATHENA PROGRAMME LIMITED,132580
South Ribble Council,http://statistics.data.gov.uk/doc/local-authority/30UN,HR & Communications,Training Expense-Course Fees,1408,6 SESSIONS FOR NAME REDACTED,13/06/2018,0000440316,360.00,Revenue,THE THERAPY COMPANY,131955
South Ribble Council,http://statistics.data.gov.uk/doc/local-authority/30UN,Housing,Cap Grant- Improve Grants,C570,Grant payment towards the cost of supply and installation of external wall insulation to ADDRESS REDACTED  Grant  4000,27/06/2018,0000440609,"4,000.00",Revenue,Trade Energy,132102
South Ribble Council,http://statistics.data.gov.uk/doc/local-authority/30UN,Area 2 - Waste Transport/Eastern & Central Teams,Materials General,4040,1 x Replacement engine/water pump.  1 x 3/4inch ball valve - TR10A1 - JFC10588 - TH,22/06/2018,0000440434,408.50,Revenue,Trailer Engineering Limited,132589
South Ribble Council,http://statistics.data.gov.uk/doc/local-authority/30UN,Development Enterprise & Comm Mgnt,Other Misc,4851,3 Gazebo Stage Package 1600.00 Daily 1920.00 2880.00 Stage Deck c/w Legs and treads Gazebo canopy with sides Generator ,22/06/2018,0000440409,"2,880.00",Revenue,UK Media Events Ltd,132263
South Ribble Council,http://statistics.data.gov.uk/doc/local-authority/30UN,Democratic Services,Other Expenses,463A,"Provide pre-signs and traffic management for the Mayor`s Civic Sunday Parade on Sunday, 17 June 2018 with NAME REDACTED",29/06/2018,0000440575,750.00,Revenue,VENTBROOK LTD,131218
South Ribble Council,http://statistics.data.gov.uk/doc/local-authority/30UN,Information Services,Peripherals,4269,"Annual PO for ISDN lines, line rentals & call charges 01/04/18 - 31/03/19",06/06/2018,0000440129,715.76,Revenue,VODAFONE RE:CABLE & WIRELESS UK,130810
South Ribble Council,http://statistics.data.gov.uk/doc/local-authority/30UN,Information Services,Peripherals,4247,Civic Centre Broadband 1GB link,08/06/2018,0000440256,"1,962.66",Revenue,VODAFONE RE:CABLE & WIRELESS UK,130810
South Ribble Council,http://statistics.data.gov.uk/doc/local-authority/30UN,Area 2 - Waste Transport/Eastern & Central Teams,External Contractors Charges,4570,VTG10 (MODIFICATION TO BRAKING SYSTEM) JFC10639 - VX18KLC - TH,29/06/2018,0000440486,27.00,Revenue,VOSA,00116839
South Ribble Council,http://statistics.data.gov.uk/doc/local-authority/30UN,Area 2 - Waste Transport/Eastern & Central Teams,External Contractors Charges,4570,VTG10 (MODIFICATION TO BRAKING SYSTEM) JFC10640 - PJ62UCM - TH,29/06/2018,0000440486,27.00,Revenue,VOSA,00116839
South Ribble Council,http://statistics.data.gov.uk/doc/local-authority/30UN,Area 2 - Waste Transport/Eastern & Central Teams,External Contractors Charges,4570,VTG10 (MODIFICATION TO BRAKING SYSTEM) JFC10641 - YP11CFM - TH,29/06/2018,0000440486,27.00,Revenue,VOSA,00116839
South Ribble Council,http://statistics.data.gov.uk/doc/local-authority/30UN,Area 2 - Waste Transport/Eastern & Central Teams,External Contractors Charges,4570,VTG10 (MODIFICATION TO BRAKING SYSTEM) JFC10642 - PO13UUM - TH,29/06/2018,0000440486,27.00,Revenue,VOSA,00116839
South Ribble Council,http://statistics.data.gov.uk/doc/local-authority/30UN,Area 2 - Waste Transport/Eastern & Central Teams,External Contractors Charges,4570,VTG10 (MODIFICATION TO BRAKING SYSTEM) JFC10643 - PJ62UCG -TH,29/06/2018,0000440486,27.00,Revenue,VOSA,00116839
South Ribble Council,http://statistics.data.gov.uk/doc/local-authority/30UN,Area 2 - Waste Transport/Eastern & Central Teams,External Contractors Charges,4570,VTG10 (MODIFICATION TO BRAKING SYSTEM) JFC10644 - PJ62UCH - TH,29/06/2018,0000440486,27.00,Revenue,VOSA,00116839
South Ribble Council,http://statistics.data.gov.uk/doc/local-authority/30UN,Area 2 - Waste Transport/Eastern & Central Teams,External Contractors Charges,4570,VTG10 (MODIFICATION TO BRAKING SYSTEM) JFC10645 - PJ62UCL - TH,29/06/2018,0000440486,27.00,Revenue,VOSA,00116839
South Ribble Council,http://statistics.data.gov.uk/doc/local-authority/30UN,Area 2 - Waste Transport/Eastern & Central Teams,External Contractors Charges,4570,VTG10 (MODIFICATION TO BRAKING SYSTEM) - JFC10646 - VO65KPX - TH,29/06/2018,0000440486,27.00,Revenue,VOSA,00116839
South Ribble Council,http://statistics.data.gov.uk/doc/local-authority/30UN,Area 2 - Waste Transport/Eastern & Central Teams,External Contractors Charges,4570,VTG10 (MODIFICATION TO BRAKING SYSTEM) JFC10647 - VO65KPY - TH,29/06/2018,0000440486,27.00,Revenue,VOSA,00116839
South Ribble Council,http://statistics.data.gov.uk/doc/local-authority/30UN,Area 2 - Waste Transport/Eastern & Central Teams,External Contractors Charges,4570,VTG10 (MODIFICATION TO BRAKING SYSTEM) JFC10648 - VO65KPZ - TH,29/06/2018,0000440486,27.00,Revenue,VOSA,00116839
South Ribble Council,http://statistics.data.gov.uk/doc/local-authority/30UN,Area 2 - Waste Transport/Eastern & Central Teams,External Contractors Charges,4570,VTG10 (MODIFICATION TO BRAKING SYSTEM) JFC10649 - VO65KRE - TH,29/06/2018,0000440486,27.00,Revenue,VOSA,00116839
South Ribble Council,http://statistics.data.gov.uk/doc/local-authority/30UN,Area 2 - Waste Transport/Eastern & Central Teams,External Contractors Charges,4570,VTG10 (MODIFICATION TO BRAKING SYSTEM) JFC10650 - VO65KRF - TH,29/06/2018,0000440486,27.00,Revenue,VOSA,00116839
South Ribble Council,http://statistics.data.gov.uk/doc/local-authority/30UN,Legal,Legal,4821,PROFESSIONAL SERVICES (STATUTORY PROCEDURES) APRIL ONWARDS,13/06/2018,0000440300,891.00,Revenue,WEIGHTMANS LLP,00120867
